Cogmind - Beta 16 @@@ ROGUE MODE // 2025.12.01 @ 18:50:15 Player: GLC Result: Core destroyed Performance ------------- Evolutions (0) 0 Regions Visited (1) 200 Robots Destroyed (21) 105 Value Destroyed (284) 284 Prototype IDs (0) 0 Alien Tech Used (0) 0 Bonus (0) 0 TOTAL SCORE: 589 Bonus ------- None Cogmind --------- Core Integrity 0/250 Matter 261/300 Energy 100/100 System Corruption 0% Temperature Cool (0) Movement Core (100) Ox1 Location -10/Materials Parts ------- > --- POWER (1) -------- (None) > --- PROPULSION (2) --- (None) > --- UTILITY (2) ------ Small Storage Unit > --- WEAPON (2) ------- (None) > --- INVENTORY (8) ---- Ion Engine Peak State ------------ > --- POWER ------------ Ion Engine > --- PROPULSION ------- Wheel Wheel > --- UTILITY ---------- Heat Sink Small Storage Unit > --- WEAPON ----------- Medium Laser Small Laser > --- INVENTORY -------- Ion Engine Wheel Assault Rifle [Rating: 7] Favorites ----------- Power Ion Engine Engine Ion Engine Propulsion Wheel Wheel Wheel Utility Small Storage Unit Device Heat Sink Storage Small Storage Unit Weapon Medium Laser Energy Gun Medium Laser Ballistic Gun Assault Rifle Build | -11 -10 ------- Run | Yrd Mat Slots Evolved . | . . Power . | . . Propulsion . | . . Utility . | . . Weapon . | . . Parts Attached 12 | 5 7 Power 1 | 1 . Engine 1 | 1 . Core . | . . Reactor . | . . Propulsion 5 | 1 4 Treads . | . . Leg . | . . Wheel 5 | 1 4 Hover . | . . Flight . | . . Utility 2 | 1 1 Device 1 | . 1 Storage 1 | 1 . Processor . | . . Hackware . | . . Protection . | . . Artifact . | . . Weapon 4 | 2 2 Energy Gun 3 | 2 1 Energy Cannon . | . . Ballistic Gun 1 | . 1 Ballistic Cannon . | . . Launcher . | . . Special Weapon . | . . Impact Weapon . | . . Slashing Weapon . | . . Piercing Weapon . | . . Special Melee Weapon . | . . Unidentified Prototypes . | . . Parts Lost 11 | . 11 Power 1 | . 1 Propulsion 5 | . 5 Utility 1 | . 1 Weapon 4 | . 4 Highest Loss Streak 8 | . 8 To Critical Strikes . | . . Average Backups 3 | 2 3 Power . | . 1 Propulsion 2 | 1 2 Utility . | . . Weapon . | . . Tool/Special . | . . Unused Backups 1 | . 1 Power 1 | . 1 Propulsion . | . . Utility . | . . Weapon . | . . Tool/Special . | . . Average Slot Usage (%) 75 | . 75 Engine 12 | . 12 Wheel 15 | . 15 Device 7 | . 7 Storage 14 | . 14 Energy Gun 23 | . 23 Ballistic Gun 1 | . 1 Peak Build Rating 7 | 5 7 Average Rating 5 | 4 5 On Entrance 2 | . 5 Avg Prop Armor Cover (%) . | . . Naked Turns . | . . Heaviest Build 14 | 14 14 Greatest Support 20 | 10 20 Greatest Overweight (x) 1 | 1 1 Average Overweight (x) . | . . Largest Inventory Capacity 8 | 8 8 Average Capacity 7 | 7 8 Most Carried 7 | 5 7 Average Carried 3 | 2 3 Final Capacity 8 | 8 8 Final Carried 5 | 5 1 Class Distribution -------------------- 96% | Mutant 3% | Scavenger-Mutant Dominant Class ---------------- Mutant | -10/Materials Resources | -11 -10 ----------- Run | Yrd Mat Matter Collected 315 | 250 65 Remotely . | . . Salvage Created 672 | 324 348 Parts 39 | 23 16 Haulers Intercepted . | . . Recyclers Shooed . | . . Parts Field Recycled . | . . Retrieved Matter . | . . Parts Self-Destructed . | . . Prevented . | . . Parts Restored . | . . Kills | -11 -10 ------- Run | Yrd Mat Combat Hostiles Destroyed 8 | . 8 Guns 8 | . 8 Classes Destroyed 5 | 3 2 Worker 3 | 2 1 Tunneler 8 | 8 . Recycler 2 | 1 1 Swarmer 3 | . 3 Grunt 5 | . 5 Best Kill Streak 8 | 8 4 Combat Bots Only 3 | . 3 Max Kills in Single Turn 1 | 1 1 Gunslinging . | . . Exploded . | . . Melee . | . . Uniques/NPCs Destroyed . | . . Combat | -11 -10 -------- Run | Yrd Mat Hostile Shots Fired 106 | . 106 Missed 35 | . 35 Hits 71 | . 71 Projectile 71 | . 71 Damage Taken 926 | . 926 Core 251 | . 251 Absorbed by Shields . | . . Core Remaining (%) 100 | 100 . Volleys Fired 86 | 19 67 Largest 2 | 2 2 Hottest 100 | 100 100 Shots Fired 147 | 38 109 Gun 147 | 38 109 Cannon . | . . Launcher . | . . Special . | . . Kinetic 23 | . 23 Thermal 124 | 38 86 Explosive . | . . Electromagnetic . | . . Robot Hit Streak 7 | 7 7 Robot Miss Streak 8 | 2 8 Penetration Max . | . . Secondary Targets 2 | . 2 Max Gunslinging Chain 1 | . 1 Shots Hit Robots 73 | 20 53 Core Hits 32 | 12 20 Critical Kills . | . . Critical Parts Destroyed . | . . Critical Strikes 5 | 2 3 Burn 5 | 2 3 Melee Attacks . | . . Impact . | . . Slashing . | . . Piercing . | . . Sneak Attacks . | . . Combat Hostiles . | . . Follow-up Attacks . | . . Damage Inflicted 950 | 277 673 Guns 939 | 277 662 Cannons . | . . Explosions . | . . Melee . | . . Ramming 11 | . 11 Kinetic 187 | . 187 Thermal 752 | 277 475 Explosive . | . . Electromagnetic . | . . Impact . | . . Slashing . | . . Piercing . | . . Highest Corruption . | . . Average Corruption . | . . Corruption Purged . | . . Corruption Blocked . | . . Overload Shots . | . . Overflow Damage . | . . Projectiles . | . . Explosions . | . . Melee . | . . Knockbacks . | . . Impact . | . . Kinetic . | . . Secondary . | . . Self-Inflicted Damage 5 | . 5 Shots . | . . Rammed 6 | . 6 Targets Rammed 6 | . 6 Kicked . | . . Crushed . | . . Highest Temperature 329 | 117 329 Average Temperature 83 | 42 108 Received Heat Transfer 489 | . 489 Effects 1 | . 1 Energy Bleed 1 | . 1 Siege Activations . | . . Martial Activations . | . . Shielding Activations . | . . Robots Disrupted . | . . Combat Hostiles . | . . Robots Corrupted . | . . Combat Hostiles . | . . Parts Fried . | . . Impact Corruptions . | . . Robots Melted . | . . Combat Hostiles . | . . Parts Melted 6 | 2 4 Heat Transferred 2507 | 962 1545 Parts Sabotaged . | . . Parts Stolen . | . . Parts Stripped . | . . Power Chain Reactions . | . . Alert | -11 -10 ------- Run | Yrd Mat Maximum Alert Level . | . . Low Security (%) 100 | 100 100 Level 1 . | . . Level 2 . | . . Level 3 . | . . Level 4 . | . . Level 5 . | . . High Security . | . . Max Security . | . . Peak Influence 110 | 10 110 Initial . | . . Average 26 | 1 38 Influence Increases 286 | 55 231 Destroy 0b10 Robot/C 160 | . 160 Destroy 0b10 Robot/NC 65 | 55 10 Destroy Leader 40 | . 40 Successful Hack 6 | . 6 Lose Combat Pursuer 15 | . 15 Influence Decreases 286 | 55 231 Time Decay 217 | 55 162 Lost Part 69 | . 69 Squads Dispatched 2 | . 2 Investigation 1 | . 1 Extermination . | . . Reinforcement 1 | . 1 Assault . | . . Garrison . | . . Intercept . | . . Searches Triggered . | . . Construction Impeded . | . . Haulers Reinforced . | . . Active Scanning Responses . | . . Cargo Convoy Interrupts . | . . Stealth | -11 -10 --------- Run | Yrd Mat Distress Signals 1 | . 1 Communications Jammed . | . . Distress Signals . | . . Times Spotted 16 | . 16 Peak Tracking Total 8 | . 8 Tactical Retreats 1 | . 1 Traps | -11 -10 ------- Run | Yrd Mat Traps Triggered . | . . Indirectly . | . . Trap Hack Attempts . | . . Triggered . | . . Disarmed . | . . Reprogrammed . | . . Reused . | . . Traps Extracted . | . . Installed . | . . Triggered . | . . Machines | -11 -10 ---------- Run | Yrd Mat Machines Disabled . | . . Max in Single Turn . | . . Machines Repaired . | . . Machines Dismantled . | . . Machines Sabotaged . | . . Overloaded Fab Kills . | . . Hacking | -11 -10 --------- Run | Yrd Mat Machines Accessed 2 | . 2 Terminals 1 | . 1 Fabricators . | . . Repair Stations . | . . Recycling Units 1 | . 1 Scanalyzers . | . . Garrison Access . | . . Total Hacks 9 | . 9 Successful 2 | . 2 Failed 7 | . 7 Catastrophic 2 | . 2 Database Lockouts . | . . Manual . | . . Terminals 6 | . 6 Fabricators . | . . Repair Stations . | . . Recycling Units 3 | . 3 Scanalyzers . | . . Garrison Access . | . . Terminal Hacks 2 | . 2 Record 1 | . 1 Locate Traps 1 | . 1 Fabricator Hacks . | . . Repair Station Hacks . | . . Recycling Unit Hacks . | . . Scanalyzer . | . . Garrison Access Hacks . | . . Unauthorized Hacks . | . . Terminals . | . . Fabricators . | . . Repair Stations . | . . Recycling Units . | . . Scanalyzers . | . . Garrison Access . | . . Data Cores Recovered . | . . Used . | . . Hacking Detections 2 | . 2 Full Trace Events 1 | . 1 Feedback Events . | . . Feedback Blocked . | . . Robot Schematics Acquired . | . . Robots Built . | . . Authchips . | . . Time . | . . Total Robot Build Rating . | . . Part Schematics Acquired . | . . Parts Built . | . . Authchips . | . . Time . | . . Total Part Build Rating . | . . Part Studies Acquired . | . . Parts Repaired . | . . Time . | . . Parts Recycled . | . . Recycled Matter . | . . Retrieved Matter . | . . Retrieved Components . | . . Parts Scanalyzed . | . . Part Schematics Acquired . | . . Parts Damaged . | . . Bothacking | -11 -10 ------------ Run | Yrd Mat Used RIF Installer . | . . Robots Hacked . | . . Non-combat . | . . Combat . | . . Robot Hacks Applied . | . . Relay Couplers Released . | . . Fabnet Peak Effective % . | . . Robots Rewired . | . . Allies Hacked . | . . Hacks Repelled . | . . Allies | -11 -10 -------- Run | Yrd Mat Total Allies . | . . Largest Group . | . . Highest-Rated Group . | . . Highest-Rated Ally . | . . Total Orders . | . . Ally Attacks . | . . Total Damage . | . . Kills . | . . Allies Corrupted . | . . Allies Melted . | . . Intel | -11 -10 ------- Run | Yrd Mat Active Infowar (turns) . | . . Robot Analysis Total . | . . Derelict Logs Recovered . | . . Drone Launches . | . . Drone Recoveries . | . . Exploration | -11 -10 ------------- Run | Yrd Mat Turns Passed 778 | 268 510 Spaces Moved 481 | 149 332 Core 10 | 2 8 Treads . | . . Legs . | . . Wheels 471 | 147 324 Hover . | . . Flight . | . . Fastest Speed 50 | 50 80 Average Speed 92 | 90 93 Slowest Speed 100 | 95 100 Overloaded Moves . | . . Propulsion Burnouts . | . . Robots Hopped . | . . Potential Cave-ins . | . . Cave-ins Triggered . | . . Exploration Rate (%) 19 | 5 33 Regions Visited 1 Branch Regions . Pre-discovered Areas . | . . Known Exits Taken . | . . Unknown Exits Taken 1 | 1 . Scrap Searched . | . . Spaces Dug . | . . Terrain Destroyed . | . . Melee . | . . Projectile . | . . AOE . | . . Terrain Rammed . | . . Walls Destroyed . | . . Machines Disabled . | . . Actions | -11 -10 --------- Run | Yrd Mat Total 668 | 244 424 Wait 64 | 62 2 Move 480 | 148 332 Hop . | . . Pick Up 13 | 10 3 Fast Attach . | . . Attach 16 | 5 11 Detach 4 | . 4 Swap . | . . Drop . | . . Fire 86 | 19 67 Melee . | . . Ram 5 | . 5 Kick . | . . Crush . | . . Escape Stasis . | . . Rewire . | . . Trap . | . . Miscellaneous . | . . Route ------- -11/Scrapyard -10/Materials (discovered 1 exit: [*Min]) History --------- Turn | Location | Event 12 | -11/Scrapyard | Discovered new exit (range 15) 269 | -11/Scrapyard | Entered Materials 308 | -10/Materials | Build established: Mutant 327 | -10/Materials | Discovered new exit (range 16) 526 | -10/Materials | Lost 3 parts (2n1w) 697 | -10/Materials | Core integrity fell below 50% 773 | -10/Materials | Core integrity fell below 20% 779 | -10/Materials | Core destroyed Last Messages --------------- Wheel destroyed. Med. Laser destroyed. Ion Engine melted. G-34 Mercenary destroyed. Switching to secondary target: G-47 Trooper. Wheel destroyed. Ion Engine destroyed. Sml. Laser destroyed. R-06 Scavenger collects Sml. Laser. R-06 Scavenger collects Heat Sink. Wheel destroyed. K-01 Serf collects debris. Assault Rifle destroyed. K-01 Serf collects debris. Slammed into G-47 Trooper. Destabilizing: System interference. Heat Sink temporarily disabled. Slammed into G-47 Trooper. Heat Sink destroyed. Slammed into G-47 Trooper. Map ----- +----------------------------------------------------+ | ??????????????????????????????????????????? | | ??????????????????????????????????????????? | | ??????????????????????????????????????????? | | ??????????????????????????????????????????? | | ??????????????????????????????????????????? | | ??????????????????????????????????????????? | | ??????????????????????????????????????????? | | ??????????????????????????????????????????? | | ??????????????????????????????????????????? | | ?????###############?????????????????????? | | ?????# #?????????????????????? | | ?????# #????????????????????? | | ?????# ! #????????????????????? | | ?????# #???????????????????? | | ?????# #???????????????????? | | ?????# #??????????????????? | | ?????#######+###+###??????????????????? | | ???######?# # ??????????????????? | | ???? # + ![ ???????######? | | ??????? + % # ! = #?????# # | | ??????????# #???#####?????# "" # | | ???######## #??????######## "" + | | ???#^ "T" ######## + "T # | | ???# ^ ## """ # "" # | | ???# g k% "R" # "" #?##### | | ???# @ ## " " # #?????? | | ???# ^ ^ ## ######?????? | | ???# """ %#######% %## #?????####?? | | ???# """"" #????# ##+###+### ?? | | ???# """"" #????# % ^ ? | | ???# """"" #????# " ^ < ? | | ???# """ #????# ^ ? | | ???# #????# ##+#######" "?? | | ???# #????####### % #?????"? ??? | | ???######### #??????????# #??????????? | | ???????????# #??????????# " " #??????????? | | ???????????# #??????????# "Y" #??????????? | | ???????????# #??????????# """ #??????????? | | ???????????# #??????????# #??????????? | | ?????????###+###????????########??????????? | | ?????????# #??????????????????????????? | | ?????????# #??????????????????????????? | | ?????????# #??????????????????????????? | | ?????????# #??????????????????????????? | | ?????##### % #??????????????????????????? | | ?????# #% #??????????????????????????? | | ?????# =%/ #??????????????????????????? | | ?????# *# #??????????????????????????? | | ?????# # #??????????????????????????? | | ?????# # = #??????????????????????????? | +----------------------------------------------------+ Best States ------------- Heat Dissipation 35 Energy Generation 10 Energy Capacity 250 Matter Stores 300 Matter Capacity 300 Sight Range 16 Terrain Scan Density 10 Evasion (%) 44 Item Schematics ----------------- None Robot Schematics ------------------ None Fabricated ------------ Nothing Repaired ---------- Nothing Studied --------- None Alien Tech Used ----------------- None Achievements -------------- None Challenges ------------ None Game ------ Seed ProcessingSiegeSword Manual? 0 Play Time 00:08:16 Cumulative 9.2 hours Start 2025.12.01 @ 18:42:16 End 2025.12.01 @ 18:50:15 Sessions 1 Manual Loads 0 Difficulty Rogue Special Mode None Game No. 21 Rogue 21 Adventurer 0 Explorer 0 Win Type - Total 0 Types 0/0/0/0/0/0/0/0/0/0 Lore% 6 Gallery% 11 Achievement% 12 Wizard Run 0 Options --------- Layout 1 ASCII 0 Keyboard 0 Movement Mouse Keybinds 0 Fullscreen 1 Font 24/Smallcaps Map View 50x35 Zoom Use 0% Tactical HUD 0 Map Filters NONE Filters NONE Steam 1 RUN: da3f2f99-832d-487c-9294-d88160260dae